lending/lending_fUSD_20240810
["ID","MTS","AMOUNT","RATE_DAILY","PERIOD"]
[334605266,1723324243362,-706.92015571,0.0001185,2]
[334605267,1723324243372,-5390.91175438,0.0001185,2]
[334605268,1723324243383,-12.0896651,0.0001185,2]
[334605269,1723324243393,-810.30103416,0.0001185,2]
[334605270,1723324243404,-927.77,0.0001185,2]
[334605271,1723324243419,-1383.95848256,0.0001185,2]
[334605272,1723324243431,-547.5801894,0.0001185,2]
[334605273,1723324243446,-293.80853246,0.0001185,2]
[334605274,1723324243458,-1728.53770147,0.0001185,2]
[334605282,1723324244439,-223.17036546,0.0001185,2]
[334605283,1723324244448,-2835.67566949,0.0001185,2]
[334605284,1723324244458,-3338.45578518,0.00011896,2]
[334605285,1723324244467,-2840.69197074,0.00011896,2]
[334605286,1723324244476,-166.57544896,0.00011896,2]
[334605287,1723324244486,-1000.0,0.000119,2]
[334605288,1723324244495,-600.66070461,0.00011959,2]
[334605289,1723324244504,-2502.21177786,0.00011959,2]
[334605290,1723324244514,-407.85,0.00012,2]
[334605291,1723324244523,-407.85,0.00012,2]
[334605292,1723324244532,-407.85,0.00012,2]
[334605293,1723324244542,-407.85,0.00012,2]
[334605294,1723324244554,-407.85,0.00012,2]
[334605295,1723324244570,-407.85,0.00012,2]
[334605296,1723324244579,-407.85,0.00012,2]
[334605297,1723324244588,-407.85,0.00012,2]
[334605298,1723324244601,-407.85,0.00012,2]
[334605299,1723324244611,-407.85,0.00012,2]
[334605300,1723324244619,-407.85,0.00012,2]
[334605301,1723324244629,-407.85,0.00012,2]
[334605302,1723324244638,-156.73,0.00012073,2]
[334605303,1723324244647,-156.73,0.0001208,2]
[334605304,1723324244656,-156.73,0.00012086,2]
[334605305,1723324244665,-420.0,0.00012092,2]
[334605306,1723324244675,-156.73,0.00012093,2]
[334605307,1723324244684,-156.73,0.000121,2]
[334605308,1723324244693,-156.73,0.00012106,2]
[334605309,1723324244702,-1000.0,0.00012111,2]
[334605310,1723324244711,-156.73,0.00012113,2]
[334605311,1723324244720,-156.73,0.0001212,2]
[334605312,1723324244729,-156.73,0.00012127,2]
[334605313,1723324244741,-156.73,0.00012133,2]
[334605314,1723324244752,-400.0,0.00012171,2]
[334605315,1723324244761,-481.448,0.00012229,2]
[334605316,1723324244771,-156.5197,0.0001223,2]
[334605317,1723324244781,-5000.0,0.0001236,2]
[334605318,1723324244792,-3031.93569449,0.0001236,2]
[334605319,1723324244804,-520.06308044,0.0001236,2]
[334605320,1723324244813,-155.0,0.00012391,2]
[334605321,1723324244823,-520.06308044,0.00012391,2]
[334605322,1723324244832,-2111.39291129,0.00012391,2]
[334605323,1723324244841,-1206.44108188,0.00012391,2]
[334605324,1723324244850,-3120.60802206,0.00012391,2]
[334605325,1723324244861,-2062.45683778,0.00012397,2]
[334605326,1723324244871,-357.40219692,0.00012397,2]
[334605327,1723324244884,-2062.45683778,0.00012397,2]
[334605328,1723324244894,-357.40219692,0.00012397,2]
[334605329,1723324244903,-155.2714471,0.00012397,2]
[334605330,1723324244914,-1634.13334679,0.00012397,2]
[334605331,1723324244926,-1240.93047111,0.00012397,2]
[334605332,1723324244936,-312.31467446,0.00012439,2]
[334605333,1723324244945,-3604.1128,0.00012439,2]
[334605334,1723324244956,-218.88046172,0.0001246,2]
[334605335,1723324244965,-378.33152515,0.0001246,2]
[334605336,1723324244974,-218.88046172,0.0001246,2]
[334605337,1723324244983,-700.0,0.000125,5]
[334605338,1723324244993,-714.0,0.000125,5]
[334605339,1723324245003,-190225.41673841,0.0001254,2]
[334605344,1723324246377,-1553.113225,0.00011186,2]
[334605345,1723324246437,-3151.26942458,0.00011186,2]
[334605346,1723324246497,-1619.0,0.00011186,2]
[334605369,1723324295579,150.0,0.00011,2]
[334605370,1723324426843,371.03,9.128e-05,2]
[334605372,1723324766644,550.0,0.0001,2]
[334605373,1723324832772,250.0,0.00010882,2]
[334605374,1723324861309,161.06,0.0001097,2]
[334605375,1723324910320,352.47,9.123e-05,2]
[334605379,1723325125250,320.0,0.00010922,2]
[334605396,1723325276741,1000.0,0.00010914,2]
[334605397,1723325288782,250.0,0.00010958,2]
[334605423,1723325431445,-200.0,0.00011004,2]
[334605424,1723325431455,-303.90469939,0.00011058,2]
[334605425,1723325431466,-308.70202285,0.00011058,2]
[334605426,1723325431476,-155.0,0.00011064,2]
[334605427,1723325431486,-1114.09224043,0.00011095,2]
[334605428,1723325431496,-300.0,0.00011104,2]
[334605429,1723325431505,-300.0,0.00011104,2]
[334605430,1723325431515,-1972.26465502,0.00011105,2]
[334605431,1723325431528,-478.1956183,0.00011105,2]
[334605432,1723325431540,-935.99632994,0.00011105,2]
[334605433,1723325431552,-2363.32361815,0.00011105,2]
[334605434,1723325431563,-1132.83599999,0.00011105,2]
[334605435,1723325431586,-851.58734451,0.00011105,2]
[334605436,1723325431600,-595.5625,0.00011105,2]
[334605437,1723325431612,-337.835,0.00011105,2]
[334605438,1723325431625,-1865.04406138,0.00011105,2]
[334605439,1723325431636,-9902.3107994,0.00011105,2]
[334605440,1723325431646,-1507.55408726,0.00011105,2]
[334605441,1723325431660,-408.1992134,0.00011105,2]
[334605442,1723325431678,-2046.06,0.00011105,2]
[334605443,1723325431689,-17.28774363,0.00011105,2]
[334605444,1723325431701,-1298.06114648,0.00011105,2]
[334605445,1723325431712,-3338.45578518,0.00011105,2]
[334605446,1723325431722,-495.95655273,0.00011105,2]
[334605447,1723325431733,-921.66411705,0.00011105,2]
[334605448,1723325431744,-693.77224151,0.00011105,2]
[334605449,1723325431754,-125.50775849,0.00011105,2]
[334605451,1723325431766,-594.38417511,0.00011105,2]
[334605452,1723325431776,-112.69314154,0.00011105,2]
[334605454,1723325431787,-487.96756307,0.00011105,2]
[334605455,1723325431798,-142.03157907,0.00011105,2]
[334605456,1723325431808,-577.17401886,0.00011105,2]
[334605457,1723325431820,-264.39916184,0.00011105,2]
[334605458,1723325431832,-371.6925449,0.00011105,2]
[334605460,1723325437736,-707.15953311,0.00011105,2]
[334605461,1723325437747,-155.0,0.00011105,2]
[334605462,1723325437757,-1634.13334679,0.00011105,2]
[334605463,1723325437768,-378.33152515,0.00011105,2]
[334605464,1723325437778,-2341.49151467,0.00011105,2]
[334605465,1723325437789,-1500.0,0.00011105,2]
[334605466,1723325437800,-724.15022388,0.00011105,2]
[334605467,1723325437814,-551.3066809,0.00011105,2]
[334605468,1723325437825,-1159.0766969,0.00011105,2]
[334605469,1723325437835,-291.18463201,0.00011105,2]
[334605470,1723325437845,-1051.35863653,0.00011105,2]
[334605471,1723325437854,-357.40219692,0.00011105,2]
[334605472,1723325437864,-938.08381223,0.00011105,2]
[334605473,1723325437881,-200.88466979,0.00011105,2]
[334605474,1723325437891,-573.14593818,0.00011105,2]
[334605475,1723325437902,-155.0,0.00011105,2]
[334605476,1723325437912,-346.12266445,0.00011105,2]
[334605477,1723325437923,-300.45999998,0.00011105,2]
[334605478,1723325437934,-404.1341079,0.00011105,2]
[334605479,1723325437945,-962.32288894,0.00011105,2]
[334605480,1723325437956,-522.18791968,0.00011105,2]
[334605481,1723325437966,-686.91534467,0.00011105,2]
[334605482,1723325437976,-155.0,0.00011105,2]
[334605483,1723325437987,-649.76947784,0.00011105,2]
[334605484,1723325437996,-200.0,0.00011105,2]
[334605485,1723325438006,-212.42571562,0.00011105,2]
[334605486,1723325438016,-507.59168347,0.00011105,2]
[334605487,1723325438027,-163.61598892,0.00011105,2]
[334605488,1723325438038,-667.26704289,0.00011105,2]
[334605489,1723325438050,-270.54243034,0.00011105,2]
[334605490,1723325438061,-265.3989425,0.00011105,2]
[334605491,1723325438071,-224.25551007,0.00011105,2]
[334605492,1723325438083,-440.02330588,0.00011105,2]
[334605493,1723325438094,-155.0,0.00011105,2]
[334605494,1723325438104,-1.73693264,0.00011105,2]
[334605495,1723325438116,-155.70049973,0.00011105,2]
[334605496,1723325438126,-200.811934,0.00011105,2]
[334605497,1723325438136,-155.0,0.00011105,2]
[334605498,1723325438146,-155.0,0.00011105,2]
[334605499,1723325438157,-383.3682737,0.00011105,2]
[334605518,1723325439611,-148.84184622,0.00011105,2]
[334605519,1723325439621,-227.31243139,0.00011105,2]
[334605520,1723325439631,-241.00170759,0.00011105,2]
[334605521,1723325439640,-155.3145241,0.00011105,2]
[334605522,1723325439650,-179.41438215,0.00011105,2]
[334605523,1723325439661,-921.42075982,0.00011105,2]
[334605524,1723325439670,-872.3885199,0.00011105,2]
[334605525,1723325439680,-476.87846375,0.00011105,2]
[334605526,1723325439689,-653.5618012,0.00011105,2]
[334605527,1723325439699,-155.0,0.00011105,2]
[334605528,1723325439708,-485.12336196,0.00011105,2]
[334605529,1723325439718,-155.0,0.00011105,2]
[334605530,1723325439728,-164.3805057,0.00011105,2]
[334605531,1723325439737,-367.82402907,0.00011105,2]
[334605532,1723325439746,-228.73687271,0.00011105,2]
[334605533,1723325439755,-155.0,0.00011105,2]
[334605534,1723325439765,-243.21975921,0.00011105,2]
[334605535,1723325439774,-309.25319094,0.00011105,2]
[334605536,1723325439784,-313.68115763,0.00011105,2]
[334605537,1723325439794,-155.0,0.00011105,2]
[334605538,1723325439803,-155.0,0.00011105,2]
[334605539,1723325439813,-155.0,0.00011105,2]
[334605540,1723325439822,-155.0,0.00011105,2]
[334605541,1723325439832,-155.0,0.00011105,2]
[334605542,1723325439842,-359.36487156,0.00011105,2]
[334605543,1723325439851,-328.20287838,0.00011105,2]
[334605544,1723325439860,-207.36545677,0.00011105,2]
[334605545,1723325439870,-165.48748024,0.00011105,2]
[334605546,1723325439880,-155.0,0.00011105,2]
[334605547,1723325439889,-205.91135105,0.00011105,2]
[334605548,1723325439898,-330.1548184,0.00011105,2]
[334605549,1723325439908,-380.27799084,0.00011105,2]
[334605550,1723325439918,-158.24348016,0.00011105,2]
[334605551,1723325439928,-17791.86477521,0.00011105,2]
[334605552,1723325439937,-380.27799084,0.00011105,2]
[334605553,1723325439947,-400.0,0.00011105,2]
[334605554,1723325439956,-155.0,0.00011105,2]
[334605555,1723325439966,-297.44821405,0.00011105,2]
[334605556,1723325439975,-155.0,0.00011105,2]
[334605557,1723325439985,-401.30737801,0.00011161,2]
[334605558,1723325439994,-182.74808241,0.00011161,2]
[334605559,1723325440004,-401.30737801,0.00011161,2]
[334605560,1723325440013,-155.0,0.00011161,2]
[334605561,1723325440023,-155.0,0.00011161,2]
[334605562,1723325440032,-155.0,0.00011161,2]
[334605563,1723325440042,-257.88535117,0.00011161,2]
[334605564,1723325440052,-155.0,0.00011161,2]
[334605565,1723325440062,-594.98831399,0.00011161,2]
[334605566,1723325440072,-155.0,0.00011161,2]
[334605567,1723325440081,-206.74216899,0.00011161,2]
[334605568,1723325440091,-155.0,0.00011161,2]
[334605569,1723325440100,-155.0,0.00011161,2]
[334605571,1723325440111,-200.0,0.00011173,2]
[334605572,1723325440121,-305.14678487,0.00011186,2]
[334605574,1723325440131,-528.84642051,0.00011186,2]
[334605576,1723325440141,-8041.39204528,0.00011186,2]
[334605578,1723325440154,-612.4220872,0.00011186,2]
[334605580,1723325440171,-16664.76214729,0.00011186,2]
[334605582,1723325440180,-321.56091267,0.00011186,2]
[334605583,1723325440190,-528.84642051,0.00011186,2]
[334605585,1723325440201,-155.0,0.00011186,2]
[334605587,1723325440211,-365.72794415,0.00011186,2]
[334605589,1723325440220,-432.42717978,0.00011186,2]
[334605590,1723325440231,-155.0,0.00011186,2]
[334605592,1723325440247,-155.0,0.00011186,2]
[334605594,1723325440256,-203.38597278,0.00011186,2]
[334605595,1723325440265,-365.72794415,0.00011186,2]
[334605596,1723325440275,-419.05748026,0.00011186,2]
[334605597,1723325440286,-202.87709383,0.00011186,2]
[334605598,1723325440295,-723.30312401,0.00011186,2]
[334605599,1723325440304,-306.30964202,0.00011186,2]
[334605600,1723325440313,-211.03121184,0.00011186,2]
[334605601,1723325440325,-432.42717978,0.00011186,2]
[334605602,1723325440335,-493.5352918,0.00011206,2]
[334605603,1723325440346,-155.0,0.00011206,2]
[334605604,1723325440355,-155.0,0.00011206,2]
[334605605,1723325440365,-236.3130847,0.00011206,2]
[334605606,1723325440375,-493.5352918,0.00011206,2]
[334605607,1723325440384,-255.15982534,0.00011206,2]
[334605608,1723325440394,-155.42139405,0.00011206,2]
[334605609,1723325440403,-155.0,0.00011206,2]
[334605610,1723325440413,-155.0,0.00011206,2]
[334605611,1723325440423,-164.35838013,0.00011322,2]
[334605612,1723325440432,-2255.02,0.00011324,2]
[334605613,1723325440441,-364.13857336,0.00011324,2]
[334605614,1723325440450,-352.47,0.00011387,2]
[334605615,1723325440460,-156.73,0.0001156,2]
[334605616,1723325440469,-156.73,0.00011566,2]
[334605617,1723325440477,-156.73,0.00011573,2]
[334605618,1723325440487,-156.73,0.00011579,2]
[334605619,1723325440496,-156.73,0.00011585,2]
[334605620,1723325440505,-156.73,0.00011592,2]
[334605621,1723325440514,-156.73,0.00011598,2]
[334605622,1723325440523,-156.73,0.00011605,2]
[334605623,1723325440532,-156.73,0.00011611,2]
[334605624,1723325440541,-156.73,0.00011618,2]
[334605625,1723325440550,-7000.0,0.00011959,2]
[334605626,1723325440559,-600.0,0.00012,2]
[334605627,1723325440568,-407.85,0.00012,2]
[334605628,1723325440577,-407.85,0.00012,2]
[334605629,1723325440587,-407.85,0.00012,2]
[334605630,1723325440596,-407.85,0.00012,2]
[334605631,1723325440605,-407.85,0.00012,2]
[334605632,1723325440615,-407.85,0.00012,2]
[334605633,1723325440625,-407.85,0.00012,2]
[334605634,1723325440634,-407.85,0.00012,2]
[334605635,1723325440644,-420.2791488,0.00012066,2]
[334605636,1723325440653,-36255.79664114,0.0001225,2]
[334605637,1723325441733,-3612.37822236,0.0001225,2]
[334605638,1723325441743,-1000.0,0.00012279,2]
[334605639,1723325441753,-320.0,0.00012288,2]
[334605640,1723325441762,-2104.6987,0.00012339,2]
[334605641,1723325441771,-3604.1128,0.00012439,2]
[334605642,1723325441781,-1403.4508,0.00012439,2]
[334605643,1723325441789,-182.7281,0.00012439,2]
[334605644,1723325441798,-156.5197,0.00012439,2]
[334605645,1723325441808,-312.31467446,0.00012454,2]
[334605646,1723325441817,-165.86544248,0.00012537,2]
[334605647,1723325441826,-321403.78349353,0.0001254,2]
[334605648,1723325441848,-182.74808241,0.00011105,2]
[334605649,1723325441856,-407.85,0.00012,2]
[334605650,1723325441865,-8350.3490392,0.0001254,2]
[334605651,1723325441877,-100054.60108673,0.0001254,2]
[334605652,1723325441887,-60572.97796053,0.0001254,2]
[334605653,1723325441898,-16917.30088226,0.0001254,2]
[334605654,1723325441907,-1877.21121263,0.0001254,2]
[334605667,1723325442630,-155.0,0.00011161,2]
[334605668,1723325442640,-10661.61358908,0.00011324,2]
[334605669,1723325443545,-4819.30063792,0.00011324,2]
[334605670,1723325443556,-407.85,0.00012,2]
[334605671,1723325443566,-407.85,0.00012,2]
[334605672,1723325443575,-407.85,0.00012,2]
[334605673,1723325443585,-407.85,0.00012,2]
[334605674,1723325443596,-407.85,0.00012,2]
[334605675,1723325443606,-407.85,0.00012,2]
[334605676,1723325443615,-407.85,0.00012,2]
[334605677,1723325443625,-407.85,0.00012,2]
[334605678,1723325443634,-3122.78878737,0.0001254,2]
[334605679,1723325443644,-2840.69197074,0.0001254,2]
[334605680,1723325443653,-728.999,0.00012554,2]
[334605681,1723325443663,-223.163,0.00012554,2]
[334605682,1723325443672,-331.712,0.00012554,2]
[334605683,1723325443682,-651.294,0.00012554,2]
[334605684,1723325443692,-664.363,0.00012554,2]
[334605685,1723325443702,-555.0,0.00012554,2]
[334605686,1723325443713,-97.73585314,0.00012554,2]
[334605687,1723325443724,-977.26414686,0.00012554,2]
[334605688,1723325443733,-550.0,0.00012554,2]
[334605689,1723325443743,-355.881,0.00012554,2]
[334605690,1723325443754,-5403.00141948,0.00012581,2]
[334605691,1723325443764,-700.0,0.000126,2]
[334605692,1723325443774,-178.14591444,0.00012613,2]
[334605693,1723325443785,-3120.60802206,0.00012665,2]
[334605694,1723325443794,-2835.67566949,0.00012681,2]
[334605695,1723325443804,-3081.78080517,0.00012681,2]
[334605696,1723325443813,-3403.93215577,0.0001269,2]
[334605697,1723325443822,-3031.93569449,0.0001269,2]
[334605698,1723325443832,-2145.62895141,0.0001269,2]
[334605699,1723325443841,-1002.98363349,0.00012818,2]
[334605700,1723325443850,-1206.44108188,0.00012826,2]
[334605701,1723325443860,-166.57544896,0.00012855,2]
[334605702,1723325443870,-520.06308044,0.00012855,2]
[334605703,1723325443879,-2502.21177786,0.00012855,2]
[334605704,1723325443888,-500.0,0.00012886,2]
[334605705,1723325443897,-157.72,0.00012893,2]
[334605706,1723325443906,-500.0,0.00012895,2]
[334605707,1723325443916,-700.0,0.000129,4]
[334605708,1723325443925,-500.0,0.00012904,2]
[334605709,1723325443934,-500.0,0.00012913,2]
[334605710,1723325443943,-500.0,0.00012921,2]
[334605711,1723325443953,-155.2714471,0.00012924,2]
[334605712,1723325443961,-500.0,0.0001293,2]
[334605713,1723325443970,-500.0,0.00012939,2]
[334605714,1723325443979,-500.0,0.00012948,2]
[334605715,1723325443988,-500.0,0.00012957,2]
[334605716,1723325443998,-500.0,0.00012965,2]
[334605717,1723325444007,-500.0,0.00012974,2]
[334605718,1723325444017,-500.0,0.00012983,2]
[334605719,1723325444025,-500.0,0.00012992,2]
[334605720,1723325444034,-500.0,0.00013001,2]
[334605721,1723325444043,-500.0,0.00013009,2]
[334605722,1723325444052,-500.0,0.00013018,2]
[334605723,1723325444061,-500.0,0.00013027,2]
[334605724,1723325444070,-500.0,0.00013036,2]
[334605725,1723325444080,-500.0,0.00013045,2]
[334605726,1723325444089,-500.0,0.00013053,2]
[334605727,1723325444098,-500.0,0.00013062,2]
[334605728,1723325444108,-500.0,0.00013071,2]
[334605729,1723325444117,-500.0,0.0001308,2]
[334605730,1723325444127,-500.0,0.00013089,2]
[334605731,1723325444137,-500.0,0.00013097,2]
[334605732,1723325444146,-500.0,0.00013106,2]
[334605733,1723325444157,-500.0,0.00013115,2]
[334605734,1723325444167,-500.0,0.00013124,2]
[334605735,1723325444176,-218.88046172,0.00013125,2]
[334605736,1723325444185,-218.88046172,0.00013125,2]
[334605737,1723325444195,-500.0,0.00013133,2]
[334605738,1723325444205,-500.0,0.00013141,2]
[334605739,1723325444216,-500.0,0.0001315,2]
[334605740,1723325444228,-500.0,0.00013159,2]
[334605741,1723325444238,-500.0,0.00013168,2]
[334605742,1723325444252,-500.0,0.00013177,2]
[334605743,1723325444261,-500.0,0.00013185,2]
[334605744,1723325444272,-500.0,0.00013194,2]
[334605745,1723325444283,-300.0,0.00013199,2]
[334605746,1723325444293,-500.0,0.00013203,2]
[334605747,1723325444304,-500.0,0.00013212,2]
[334605748,1723325444314,-500.0,0.00013221,2]
[334605749,1723325444323,-500.0,0.00013229,2]
[334605750,1723325444333,-500.0,0.00013238,2]
[334605751,1723325444342,-500.0,0.00013247,2]
[334605752,1723325444352,-500.0,0.00013256,2]
[334605753,1723325444361,-500.0,0.00013265,2]
[334605754,1723325444370,-500.0,0.00013273,2]
[334605755,1723325444380,-500.0,0.00013282,2]
[334605756,1723325444390,-155.0,0.00013283,2]
[334605757,1723325444400,-500.0,0.00013291,2]
[334605758,1723325444410,-500.0,0.000133,2]
[334605759,1723325444430,-500.0,0.00013309,2]
[334605760,1723325444439,-500.0,0.00013317,2]
[334605761,1723325444449,-500.0,0.00013326,2]
[334605762,1723325444459,-500.0,0.00013335,2]
[334605763,1723325444468,-312.31467446,0.00013491,2]
[334605764,1723325444477,-1000.0,0.00013643,2]
[334605765,1723325444486,-352.47,0.00013651,2]
[334605766,1723325444495,-320.0,0.00013653,2]
[334605767,1723325444505,-39868.17486341,0.00013656,2]
[334605768,1723325444514,-200.0,0.00013699,2]
[334605769,1723325444523,-500.0,0.00013699,2]
[334605770,1723325444532,-170.46,0.00013699,2]
[334605771,1723325444542,-2751.0,0.00013699,2]
[334605772,1723325444551,-7500.0,0.000137,2]
[334605773,1723325444559,-200.0,0.00013773,2]
[334605774,1723325444568,-2000.0,0.000138,2]
[334605775,1723325444578,-127848.93221309,0.000138,3]
[334605776,1723325444590,-2275.87200991,0.000138,3]
[334605777,1723325444599,-8500.0,0.00013808,2]
[334605778,1723325444609,-1400.0,0.000139,5]
[334605779,1723325444618,-53272.8877001,0.000139,3]
[334605783,1723325445640,-155.0,0.00011161,2]
[334605784,1723325445651,-407.85,0.00012,2]
[334605785,1723325445662,-354.190015,0.00012,2]
[334605786,1723325445756,-53.659985,0.00012,2]
[334605787,1723325445766,-407.85,0.00012,2]
[334605788,1723325445775,-407.85,0.00012,2]
[334605789,1723325445788,-63.81496473,0.00012,2]
[334605790,1723325445936,-344.03503527,0.00012,2]
[334605791,1723325445947,-407.85,0.00012,2]
[334605792,1723325445958,-407.85,0.00012,2]
[334605793,1723325445968,-407.85,0.00012,2]
[334605794,1723325445979,-407.85,0.00012,2]
[334605795,1723325445988,-407.85,0.00012,2]
[334605796,1723325445999,-677.85634873,0.0001269,2]
[334605797,1723325446011,-375.6372615,0.0001269,2]
[334605810,1723325514698,150.0,0.00011,2]
[334605811,1723325517171,319.98,0.00010725,2]
[334605825,1723325596319,176715.58359384,0.00010725,2]
[334605830,1723325608028,227.7293364,0.00010725,2]
[334605850,1723325991152,303.98,0.00010123,2]
[334605851,1723325993797,2921.65329156,0.00025,120]
[334605852,1723325996423,2766.57,0.00011,2]
[334605859,1723326387732,332.83707859,0.00010968,2]
[334605866,1723326484826,288.78,9.169e-05,2]
[334605878,1723326586431,550.0,0.0001,2]
[334605879,1723326633315,-200.0,0.0001105,2]
[334605880,1723326633324,-250.0,0.00011064,2]
[334605881,1723326633333,-150.0,0.00011068,2]
[334605882,1723326633343,-1000.0,0.00011078,2]
[334605883,1723326633353,-250.0,0.00011079,2]
[334605884,1723326633363,-18.85369803,0.00011082,2]
[334605885,1723326633482,-841.88482517,0.00011082,2]
[334605886,1723326633494,-1435.3014768,0.00011082,2]
[334605887,1723326633505,-169.0,0.00011102,2]
[334605888,1723326633515,-150.0,0.00011104,2]
[334605889,1723326633525,-400.0,0.00011105,2]
[334605890,1723326633535,-401.30737801,0.00011105,2]
[334605891,1723326633545,-528.84642051,0.00011105,2]
[334605892,1723326633555,-594.98831399,0.00011105,2]
[334605893,1723326633565,-159.20339,0.00011105,2]
[334605894,1723326633574,-419.05748026,0.00011105,2]
[334605895,1723326633587,-211.03121184,0.00011105,2]
[334605896,1723326633597,-2131.16987215,0.00011105,2]
[334605897,1723326633609,-989.43814991,0.00011105,2]
[334605898,1723326633618,-2358.20421578,0.00011105,2]
[334605899,1723326633630,-477.47145371,0.00011105,2]
[334605900,1723326633640,-490.6176611,0.00011105,2]
[334605901,1723326633651,-2591.16314407,0.00011105,2]
[334605902,1723326633661,-4624.22384602,0.00011105,2]
[334605903,1723326633670,-3031.93569449,0.00011105,2]
[334605904,1723326633680,-1256.92584908,0.00011105,2]
[334605905,1723326633689,-155.29884074,0.00011114,2]
[334605906,1723326633698,-2000.0,0.00011348,2]
[334605908,1723326633708,-288.78,0.00011432,2]
[334605910,1723326633717,-498.7,0.0001147,2]
[334605911,1723326633727,-931.67,0.0001147,2]
[334605912,1723326633736,-499.99,0.0001147,2]
[334605913,1723326633745,-1013.96,0.0001147,2]
[334605914,1723326633754,-150.0,0.00011677,2]
[334605915,1723326633764,-232.0,0.00011875,2]
[334605916,1723326633773,-875.58,0.00011976,2]
[334605917,1723326633782,-911.28,0.00011976,2]
[334605918,1723326633791,-468.58,0.00011992,2]
[334605919,1723326633802,-468.58,0.00011995,2]
[334605920,1723326633811,-468.58,0.00011998,2]
[334605921,1723326633820,-600.0,0.00012,2]
[334605922,1723326633829,-468.58,0.00012002,2]
[334605923,1723326633838,-468.58,0.00012005,2]
[334605924,1723326634020,-468.58,0.00012008,2]
[334605925,1723326634030,-468.58,0.00012011,2]
[334605926,1723326634039,-468.58,0.00012014,2]
[334605927,1723326634049,-468.58,0.00012017,2]
[334605928,1723326634058,-468.58,0.0001202,2]
[334605929,1723326634067,-468.58,0.00012024,2]
[334605930,1723326634077,-468.58,0.00012027,2]
[334605931,1723326634086,-468.58,0.0001203,2]
[334605932,1723326634096,-468.58,0.00012033,2]
[334605933,1723326634105,-468.58,0.00012036,2]
[334605934,1723326634114,-468.58,0.00012039,2]
[334605935,1723326634123,-468.58,0.00012042,2]
[334605936,1723326634133,-468.58,0.00012046,2]
[334605937,1723326634142,-468.58,0.00012049,2]
[334605938,1723326634151,-468.58,0.00012052,2]
[334605939,1723326634161,-290.4654,0.0001225,2]
[334605940,1723326634170,-218.88046172,0.00012397,2]
[334605941,1723326634179,-218.88046172,0.00012397,2]
[334605942,1723326634188,-1049.84272767,0.00012429,2]
[334605943,1723326634197,-2500.0,0.00012439,2]
[334605944,1723326634207,-1000.0,0.00012463,2]
[334605945,1723326634216,-15231.51234378,0.00012473,2]
[334605946,1723326637853,-5255.92241343,0.00012473,2]
[334605947,1723326637867,-7460.96546507,0.00012473,2]
[334605948,1723326637880,-313.999999,0.00012473,2]
[334605949,1723326638005,-300.0,0.00012473,2]
[334605950,1723326638190,-1827.43634387,0.00012473,2]
[334605974,1723326639858,-1504.70332565,0.00012473,2]
[334605975,1723326639869,-312.31467446,0.00012473,2]
[334605976,1723326639878,-297.73,0.00012529,2]
[334605977,1723326639888,-297.73,0.00012529,2]
[334605978,1723326639897,-297.73,0.00012529,2]
[334605979,1723326639906,-297.73,0.00012529,2]
[334605980,1723326639918,-297.73,0.00012529,2]
[334605981,1723326639927,-297.73,0.00012529,2]
[334605982,1723326639936,-297.73,0.00012529,2]
[334605983,1723326639946,-297.73,0.00012529,2]
[334605984,1723326639956,-416285.20776774,0.0001254,2]
[334605985,1723326640177,-297.73,0.00012529,2]
[334605986,1723326640189,-1139.53737462,0.0001254,2]